Cogmind - Beta 16.1 @@@ ROGUE MODE // 2026.05.03 @ 21:54:14 Player: Foongus0298 Result: Self-destructed Performance ------------- Evolutions (1) 500 Regions Visited (2) 400 Robots Destroyed (28) 140 Value Destroyed (666) 666 Prototype IDs (4) 80 Alien Tech Used (0) 0 Bonus (0) 0 TOTAL SCORE: 1786 Bonus ------- None Cogmind --------- Core Integrity 54/400 Matter 283/300 Energy 100/100 System Corruption 0% Temperature Cool (9) Movement Core (700) Ox13 Location -9/Materials Parts ------- > --- POWER (1) -------- (None) > --- PROPULSION (3) --- (None) > --- UTILITY (3) ------ High-capacity Storage Unit > --- WEAPON (2) ------- (None) > --- INVENTORY (20) --- Ion Engine Ion Engine Heavy Ion Engine Light Nuclear Core VTOL Module VTOL Module Improved Flight Unit Heat Sink Small Storage Unit Medium Storage Unit Large Storage Unit Large Matter Pod (150) Sensor Array ECM Suite Medium Laser Small Laser Grenade Launcher Mining Claw Peak State ------------ > --- POWER ------------ Heavy Ion Engine > --- PROPULSION ------- Light Treads Wheel > --- UTILITY ---------- High-capacity Storage Unit Weight Redist. System > --- WEAPON ----------- Light Assault Rifle Light Assault Rifle > --- INVENTORY -------- Ion Engine Ion Engine Heavy Ion Engine Light Nuclear Core Flight Unit VTOL Module VTOL Module Improved Flight Unit Heat Sink Small Storage Unit Medium Storage Unit Large Storage Unit Large Matter Pod Sensor Array ECM Suite EM Pulse Gun Medium Laser Small Laser Light Assault Rifle Grenade Launcher [Rating: 12] Favorites ----------- Power Ion Engine Engine Ion Engine Power Core Light Nuclear Core Propulsion Light Treads Treads Light Treads Wheel Wheel Flight Unit Flight Unit Utility High-capacity Storage Unit Device Weight Redist. System Storage High-capacity Storage Unit Protection Light Armor Plating Weapon Light Assault Rifle Energy Gun Medium Laser Ballistic Gun Light Assault Rifle Build | -11 -10 -9 ------- Run | Yrd Mat Mat Slots Evolved 2 | . . 2 Power . | . . . Propulsion 1 | . . 1 Utility 1 | . . 1 Weapon . | . . . Parts Attached 26 | 6 10 10 Power 5 | 1 2 2 Engine 4 | 1 2 1 Core 1 | . . 1 Reactor . | . . . Propulsion 8 | 2 1 5 Treads 4 | 2 1 1 Leg . | . . . Wheel 3 | . . 3 Hover . | . . . Flight 1 | . . 1 Utility 7 | 1 4 2 Device 1 | . . 1 Storage 4 | 1 3 . Processor . | . . . Hackware . | . . . Protection 2 | . 1 1 Artifact . | . . . Weapon 6 | 2 3 1 Energy Gun 2 | 2 . . Energy Cannon . | . . . Ballistic Gun 4 | . 3 1 Ballistic Cannon . | . . . Launcher . | . . . Special Weapon . | . . . Impact Weapon . | . . . Slashing Weapon . | . . . Piercing Weapon . | . . . Special Melee Weapon . | . . . Unidentified Prototypes 1 | . . 1 Parts Lost 16 | . 2 14 Power 1 | . . 1 Propulsion 8 | . 1 7 Utility 3 | . 1 2 Weapon 4 | . . 4 Highest Loss Streak 8 | . 1 8 To Critical Strikes . | . . . Average Backups 15 | 2 14 18 Power 2 | . 2 3 Propulsion 3 | 1 3 4 Utility 4 | . 4 6 Weapon 4 | . 4 5 Tool/Special . | . . . Unused Backups 15 | . 2 13 Power 2 | . . 2 Propulsion 6 | . 1 5 Utility 5 | . 1 4 Weapon 2 | . . 2 Tool/Special . | . . . Average Slot Usage (%) 83 | . 88 71 Engine 11 | . 14 7 Treads 24 | . 28 15 Wheel 2 | . . 8 Storage 13 | . 14 11 Protection 3 | . 3 2 Energy Gun 1 | . 2 . Ballistic Gun 24 | . 25 20 Peak Build Rating 12 | 6 8 12 Average Rating 7 | 4 7 9 On Entrance 4 | . 6 8 Avg Prop Armor Cover (%) 13 | . . 13 Naked Turns . | . . . Heaviest Build 50 | 13 50 50 Greatest Support 60 | 40 40 60 Greatest Overweight (x) 15 | . 1 15 Average Overweight (x) 1 | . . 2 Largest Inventory Capacity 20 | 8 20 20 Average Capacity 18 | 7 18 20 Most Carried 20 | 4 20 20 Average Carried 15 | 2 14 18 Final Capacity 20 | 8 20 20 Final Carried 20 | 4 20 18 Class Distribution -------------------- 63% | Scavenger-Mutant 36% | Mutant Dominant Class ---------------- Scavenger-Mutant | -10/Materials Scavenger-Mutant | -9/Materials Resources | -11 -10 -9 ----------- Run | Yrd Mat Mat Matter Collected 862 | 214 375 273 Remotely . | . . . Salvage Created 1000 | . 406 594 Parts 49 | . 25 24 Haulers Intercepted 2 | . 1 1 Recyclers Shooed 1 | . . 1 Parts Field Recycled . | . . . Retrieved Matter . | . . . Parts Self-Destructed . | . . . Prevented . | . . . Parts Restored . | . . . Kills | -11 -10 -9 ------- Run | Yrd Mat Mat Combat Hostiles Destroyed 24 | . 12 12 Guns 24 | . 12 12 Classes Destroyed 5 | . 3 2 Hauler 2 | . 1 1 Recycler 2 | . . 2 Swarmer 9 | . 6 3 Grunt 14 | . 6 8 Sentry 1 | . . 1 Best Kill Streak 3 | . 3 3 Combat Bots Only 3 | . 3 3 Max Kills in Single Turn 1 | . 1 1 Gunslinging . | . . . Exploded . | . . . Melee . | . . . Uniques/NPCs Destroyed . | . . . Combat | -11 -10 -9 -------- Run | Yrd Mat Mat Hostile Shots Fired 240 | . 90 150 Missed 67 | . 22 45 Hits 173 | . 68 105 Projectile 173 | . 68 105 Critical Strikes 4 | . 1 3 Damage Taken 2063 | . 720 1343 Core 417 | . 71 346 Absorbed by Shields . | . . . Regen/Repaired (Parts) 69 | . 69 . Core Remaining (%) 85 | 100 71 . Volleys Fired 135 | . 54 81 Largest 2 | . 2 2 Hottest 90 | . 90 40 Shots Fired 264 | . 108 156 Gun 264 | . 108 156 Cannon . | . . . Launcher . | . . . Special . | . . . Kinetic 254 | . 98 156 Thermal 10 | . 10 . Explosive . | . . . Electromagnetic . | . . . Robot Hit Streak 17 | . 17 15 Robot Miss Streak 8 | . 3 8 Penetration Max . | . . . Secondary Targets 3 | . 1 2 Max Gunslinging Chain 1 | . 1 1 Shots Hit Robots 174 | . 75 99 Core Hits 66 | . 26 40 Critical Kills 1 | . 1 . Critical Parts Destroyed 3 | . 2 1 Critical Strikes 4 | . 3 1 Destroy 4 | . 3 1 Melee Attacks . | . . . Impact . | . . . Slashing . | . . . Piercing . | . . . Sneak Attacks . | . . . Combat Hostiles . | . . . Follow-up Attacks . | . . . Damage Inflicted 1479 | . 620 859 Guns 1479 | . 620 859 Cannons . | . . . Explosions . | . . . Melee . | . . . Ramming . | . . . Kinetic 1397 | . 538 859 Thermal 82 | . 82 . Explosive . | . . . Electromagnetic . | . . . Impact . | . . . Slashing . | . . . Piercing . | . . . Highest Corruption . | . . . Average Corruption . | . . . Corruption Purged . | . . . Corruption Blocked . | . . . Overload Shots . | . . . Overflow Damage . | . . . Projectiles . | . . . Explosions . | . . . Melee . | . . . Knockbacks . | . . . Impact . | . . . Kinetic . | . . . Secondary . | . . . Self-Inflicted Damage . | . . . Shots . | . . . Rammed . | . . . Targets Rammed . | . . . Kicked . | . . . Crushed . | . . . Highest Temperature 195 | . 195 27 Average Temperature 26 | . 39 7 Received Heat Transfer 819 | . 267 552 Siege Activations . | . . . Martial Activations . | . . . Shielding Activations . | . . . Robots Disrupted . | . . . Combat Hostiles . | . . . Robots Corrupted . | . . . Combat Hostiles . | . . . Parts Fried . | . . . Impact Corruptions . | . . . Robots Melted . | . . . Combat Hostiles . | . . . Parts Melted 1 | . 1 . Heat Transferred 223 | . 223 . Parts Sabotaged . | . . . Parts Stolen . | . . . Parts Stripped . | . . . Power Chain Reactions . | . . . Alert | -11 -10 -9 ------- Run | Yrd Mat Mat Maximum Alert Level . | . . . Low Security (%) 100 | 100 100 100 Level 1 . | . . . Level 2 . | . . . Level 3 . | . . . Level 4 . | . . . Level 5 . | . . . High Security . | . . . Max Security . | . . . Peak Influence 146 | . 97 146 Initial 9 | . . 9 Average 46 | . 33 84 Influence Increases 767 | . 409 358 Destroy 0b10 Robot/C 480 | . 240 240 Destroy 0b10 Robot/NC 20 | . 5 15 Destroy Leader 114 | . 62 52 Successful Hack 48 | . 42 6 Lose Combat Pursuer 105 | . 60 45 Influence Decreases 767 | . 386 381 Entered New Map 14 | . . 14 Time Decay 605 | . 366 239 Lost Part 148 | . 20 128 Squads Dispatched 4 | . 2 2 Investigation 3 | . 2 1 Extermination . | . . . Reinforcement 1 | . . 1 Assault . | . . . Garrison . | . . . Intercept . | . . . Searches Triggered . | . . . Construction Impeded . | . . . Haulers Reinforced . | . . . Active Scanning Responses . | . . . Cargo Convoy Interrupts . | . . . Stealth | -11 -10 -9 --------- Run | Yrd Mat Mat Distress Signals 5 | . 1 4 Communications Jammed . | . . . Distress Signals . | . . . Times Spotted 55 | . 28 27 Peak Tracking Total 5 | . 5 5 Tactical Retreats 6 | . 4 2 Traps | -11 -10 -9 ------- Run | Yrd Mat Mat Traps Triggered 2 | . 2 . Indirectly . | . . . Trap Hack Attempts . | . . . Triggered . | . . . Disarmed . | . . . Reprogrammed . | . . . Reused . | . . . Traps Extracted . | . . . Installed . | . . . Triggered . | . . . Machines | -11 -10 -9 ---------- Run | Yrd Mat Mat Machines Disabled . | . . . Max in Single Turn . | . . . Machines Repaired . | . . . Machines Dismantled . | . . . Machines Sabotaged . | . . . Overloaded Fab Kills . | . . . Hacking | -11 -10 -9 --------- Run | Yrd Mat Mat Machines Accessed 8 | . 6 2 Terminals 7 | . 5 2 Fabricators . | . . . Repair Stations 1 | . 1 . Recycling Units . | . . . Scanalyzers . | . . . Garrison Access . | . . . Total Hacks 21 | . 14 7 Successful 13 | . 11 2 Failed 7 | . 2 5 Catastrophic 1 | . . 1 Database Lockouts 1 | . 1 . Manual 18 | . 11 7 Terminals 19 | . 12 7 Fabricators . | . . . Repair Stations 2 | . 2 . Recycling Units . | . . . Scanalyzers . | . . . Garrison Access . | . . . Terminal Hacks 6 | . 5 1 Robot Analysis 5 | . 4 1 Prototype ID Bank 1 | . 1 . Fabricator Hacks . | . . . Repair Station Hacks 2 | . 2 . Scan Component 1 | . 1 . Repair 1 | . 1 . Recycling Unit Hacks . | . . . Scanalyzer . | . . . Garrison Access Hacks . | . . . Unauthorized Hacks 5 | . 4 1 Terminals 5 | . 4 1 Botnet 5 | . 4 1 Fabricators . | . . . Repair Stations . | . . . Recycling Units . | . . . Scanalyzers . | . . . Garrison Access . | . . . Data Cores Recovered . | . . . Used . | . . . Hacking Detections 7 | . 5 2 Full Trace Events 2 | . 1 1 Feedback Events . | . . . Feedback Blocked . | . . . Robot Schematics Acquired . | . . . Robots Built . | . . . Authchips . | . . . Time . | . . . Total Robot Build Rating . | . . . Part Schematics Acquired . | . . . Parts Built . | . . . Authchips . | . . . Time . | . . . Total Part Build Rating . | . . . Part Studies Acquired . | . . . Parts Repaired 1 | . 1 . Time 26 | . 26 . Parts Recycled . | . . . Recycled Matter . | . . . Retrieved Matter . | . . . Retrieved Components . | . . . Parts Scanalyzed . | . . . Part Schematics Acquired . | . . . Parts Damaged . | . . . Bothacking | -11 -10 -9 ------------ Run | Yrd Mat Mat Used RIF Installer . | . . . Robots Hacked . | . . . Non-combat . | . . . Combat . | . . . Robot Hacks Applied . | . . . Relay Couplers Released . | . . . Fabnet Peak Effective % . | . . . Robots Rewired . | . . . Allies Hacked . | . . . Hacks Repelled . | . . . Allies | -11 -10 -9 -------- Run | Yrd Mat Mat Total Allies . | . . . Largest Group . | . . . Highest-Rated Group . | . . . Highest-Rated Ally . | . . . Total Orders . | . . . Ally Attacks . | . . . Total Damage . | . . . Kills . | . . . Allies Corrupted . | . . . Allies Melted . | . . . Intel | -11 -10 -9 ------- Run | Yrd Mat Mat Active Infowar (turns) . | . . . Robot Analysis Total 5 | . 4 1 Derelict Logs Recovered . | . . . Drone Launches . | . . . Drone Recoveries . | . . . Exploration | -11 -10 -9 ------------- Run | Yrd Mat Mat Turns Passed 2084 | 93 1386 605 Spaces Moved 782 | 53 511 218 Core 7 | 3 . 4 Treads 606 | 50 511 45 Legs . | . . . Wheels 169 | . . 169 Hover . | . . . Flight . | . . . Fastest Speed 50 | 50 160 105 Average Speed 197 | 153 219 156 Slowest Speed 800 | 160 240 800 Overloaded Moves . | . . . Propulsion Burnouts . | . . . Robots Hopped . | . . . Potential Cave-ins . | . . . Cave-ins Triggered . | . . . Exploration Rate (%) 39 | 4 87 26 Regions Visited 2 Branch Regions . Pre-discovered Areas . | . . . Known Exits Taken . | . . . Unknown Exits Taken 2 | 1 1 . Scrap Searched . | . . . Spaces Dug . | . . . Terrain Destroyed . | . . . Melee . | . . . Projectile . | . . . AOE . | . . . Terrain Rammed . | . . . Walls Destroyed . | . . . Machines Disabled . | . . . Actions | -11 -10 -9 --------- Run | Yrd Mat Mat Total 1103 | 62 684 357 Wait 126 | . 91 35 Move 780 | 52 510 218 Hop . | . . . Pick Up 24 | 4 13 7 Fast Attach 12 | 6 3 3 Attach 7 | . 1 6 Detach 1 | . 1 . Swap 11 | . 8 3 Drop 7 | . 3 4 Fire 135 | . 54 81 Melee . | . . . Ram . | . . . Kick . | . . . Crush . | . . . Escape Stasis . | . . . Rewire . | . . . Trap . | . . . Miscellaneous . | . . . Route ------- -11/Scrapyard -10/Materials (discovered 3 exits: *Mat x3) -9/Materials History --------- Turn | Location | Event 8 | -11/Scrapyard | Discovered new exit (range 14) 94 | -11/Scrapyard | Entered Materials 318 | -10/Materials | Build established: Mutant 566 | -10/Materials | Discovered new exit (range 6) 860 | -10/Materials | Build established: Scavenger-Mutant 1090 | -10/Materials | Discovered new exit (range 8) 1275 | -10/Materials | Repaired Lgt. Assault Rifle 1288 | -10/Materials | Discovered new exit (range 14) 1416 | -10/Materials | Central database locked down 1480 | -10/Materials | Entered another Materials area 1480 | -9/Materials | Evolved 2 slots: Propulsion x1, Utility x1 2069 | -9/Materials | Core integrity fell below 50% 2085 | -9/Materials | Self-destructed Last Messages --------------- 01921_ Acquired Hvy. Ion Engine. 01925_ K-01 Serf collects debris. 01941_ Dropped Flight Unit. 01942_ Acquired VTOL Module. 01957_ K-01 Serf collects debris. 01976_ Acquired Weight Redist. System. 02036_ Dropped EM Pulse Gun. 02036_ Acquired Mining Claw. 02044_ Lgt. Assault Rifle destroyed. 02047_ Lgt. Treads destroyed. 02050_ Lgt. Assault Rifle destroyed. 02059_ Wheel destroyed. 02063_ Weight Redist. System destroyed. 02063_ Lgt. Assault Rifle destroyed. 02066_ Critical hit (Burn: +37). 02066_ Hvy. Ion Engine destroyed. 02068_ Critical hit (Burn: +37). 02068_ M-13 Machinist repairs Y-45 Defender. 02074_ M-13 Machinist destroyed. 02082_ Flight Unit destroyed. Map ----- +----------------------------------------------------+ | | | | | ???????????????????????????######### | | ???????????????????????????? """ | | ????????????????????????????# "T" "" | | ????????????????????????????# "" | | ????????????????????????????? / "" | | ?????#????????????????????????? | | ????? ?????????????????????????? | | ?????? ????????#########?????????##+ | | ?????? ????????# #?????????# | | ??????# ???????# ########### | | ??????# ???????# # + [ | | ???####+#####??##### # ## | | ???# #??????# # ## | | ???# """ ! #?#????# # ## | | ???# """ # ###### %+% ## | | ??## """ # # ## | | ??# ! + # ## | | ???# """ %! # # ## | | ???# """ = [###+#### # ## | | ???# """ Y # # ########### | | ???# Y# " # #?????????# | | ???########Y# """ %+% ########### | | ??????????# # "" # [ T | | ??????????#@# """ # | | ??????????# # "" # | | ??????????# # """ # #### | | ??????????# # """ # #??? | | ??????????# # """ # #??? | | ??????????# # " # """ ##?? | | ??????????# #?? # """"" "#?? | | ?########?# #?? # """"" T#?? | | ?? ?# #??##### """"" "#?? | | ?? # ######## % """ ##?? | | ???"" """ # # # #??? | | ???"" """ + #! =# #??? | | ???"" """ # # %+! """ #??? | | ?? # # # """ #??? | | ?? ?# # #] """ [#??? | | ? ?# ###### %""" % #??? | | ?#######??# ## # %#??? | | ??????????# ##!!!# #??? | | ??????????# ##!! # | | ??????????# ##!! # """ | | ??????????# ## ==# !""""" ? | | ########### ## # % """"" # | | # """ # ## # *""""" # | | # """"" # ###+## """ # | | # """"" # # | +----------------------------------------------------+ Best States ------------- Heat Dissipation 28 Energy Generation 14 Energy Capacity 280 Matter Stores 300 Matter Capacity 300 Sight Range 16 Terrain Scan Density 10 Additional Mass Support 6 Armor Coverage 150 Evasion (%) 40 Recoil Reduction 3 Item Schematics ----------------- None Robot Schematics ------------------ None Fabricated ------------ Nothing Repaired ---------- Lgt. Assault Rifle | 13% | -10/Materials Studied --------- None Alien Tech Used ----------------- None Achievements -------------- None Challenges ------------ None Game ------ Seed CoordinationLightpackUnit Manual? 0 Play Time 00:15:41 Cumulative 109.0 hours Start 2026.05.03 @ 21:38:12 End 2026.05.03 @ 21:54:14 Sessions 1 Manual Loads 0 Difficulty Rogue Special Mode None Game No. 73 Rogue 73 Adventurer 0 Explorer 0 Win Type - Total 1 Types 1/0/0/0/0/0/0/0/0/0 Lore% 52 Gallery% 50 Achievement% 43 Wizard Run 0 Options --------- Layout 1 ASCII 0 Keyboard 0 Movement Mouse Keybinds 0 Fullscreen 1 Font 24/Smallcaps Map View 50x35 Zoom Use 0% Tactical HUD 1 Map Filters NONE Filters NONE Steam 1 RUN: 8f80d41c-1fce-4339-9880-49462648b5f3